[Event "July 23 Late 2024"]
[Site "Chess.com"]
[Date "2024.07.23"]
[Round "1.1"]
[White "Villa Tornero, Alex"]
[Black "Carlsen, Magnus"]
[Result "0-1"]
[ECO "B10"]
[WhiteElo "2545"]
[BlackElo "3240"]
[PlyCount "110"]
[EventDate "2024.??.??"]
[WhiteTeam "ESP"]
[BlackTeam "NOR"]
[TimeControl "180+1"]
[WhiteClock "0:00:01"]
[BlackClock "0:01:30"]

1. e4 {[%emt 0:00:02] Wojtaszek,Radoslaw} c6 {[%emt 0:00:03]} 2. Nf3 {[%emt 0:00:01]} d5 {[%emt 0:00:01]} 3. exd5 {[%emt 0:00:01]} cxd5 {[%emt 0:00:03]} 4. Ne5 {[%emt 0:00:01]} e6 {[%emt 0:00:05]} 5. d4 {[%emt 0:00:03]} Nc6 {[%emt 0:00:04]} 6. c3 {[%emt 0:00:04]} Bd6 {[%emt 0:00:02]} ({RR} 6... Nxe5 7. dxe5 Ne7 8. Nd2 Nc6 9. Nf3 Qc7 10. Bf4 Be7) 7. Nxc6 {[%emt 0:00:06]} ({RR} 7. f4 Nge7 8. Bd3 O-O 9. O-O f6 10. Qh5 ({RR} 10. Nxc6 bxc6) 10... Nf5 11. Nxc6 ({RR} 11. g4 fxe5 12. fxe5 ({RR} 12. gxf5 e4) 12... Nxe5 13. dxe5 Bc5+ 14. Kh1 g6 15. Qh3 Nh4) 11... bxc6 12. Nd2 ({RR} 12. Bxf5 exf5) 12... g6 13. Qe2 ({RR} 13. Qh3 e5 14. fxe5 fxe5 15. dxe5 Bxe5) 13... Qc7 14. g4 Ng7 15. Nb3 ({RR} 15. Nf3 Bxf4 16. Bxf4 Qxf4 17. Ne5 Qg5 18. Nxc6 Bd7) 15... Bd7 16. Bd2 ({RR} 16. c4 e5 17. c5 Be7 18. fxe5 fxe5 19. Rxf8+ ({RR} 19. Qxe5 Qxe5 20. dxe5 Rxf1+ 21. Kxf1 Bxg4) 19... Rxf8 20. dxe5 a5 21. a4 Ne6) 16... Rae8 17. Rae1 e5 18. fxe5 fxe5 19. Rxf8+ Kxf8 20. dxe5 Bxe5 21. Qf3+ Kg8 {Sedlak,N (2550)-Wojtaszek,R (2711) Khanty-Mansiysk 2010 CBM 139 [Wojtaszek,Radoslaw] 0-1 (32)} {RR} 22. h3 Ne6 23. Rf1 Rf8 24. Qe2 Rxf1+ 25. Kxf1) ({RR} 7. f4 Nge7 8. Bd3 O-O 9. O-O f6 10. Qh5 Nf5 11. Nf3 g6 12. Qh3 e5 13. fxe5 Nfxd4 14. Qh6 Nxf3+ 15. Rxf3 Nxe5 16. Rg3 Qb6+ 17. Be3 Bc5 18. Bxc5 Qxc5+ 19. Kh1 Ng4 20. Qf4 Nf2+ 21. Kg1 Nxd3+ {Diaz Vasquez,M (2266)-Brenke,A (2349) chess.com INT 2025 0-1 (41)}) 7... bxc6 {[%emt 0:00:01]} 8. Bd3 {[%emt 0:00:02]} Ne7 {[%emt 0:00:05]} 9. O-O {[%emt 0:00:06]} O-O $146 {[%emt 0:00:01]} ({RR} 9... Qc7 10. h3 O-O 11. Nd2 f6 12. Nb3 e5 13. c4 e4 14. Be2 Qd8 15. cxd5 Nxd5 16. f3 Bf5 17. Nd2 exf3 18. Bxf3 Bg6 19. Nc4 Bb8 20. Ne3 Bf7 21. Nxd5 cxd5 22. Bg4 Qb6 23. Kh1 Re8 24. b3 {Coicev,M (2153)-Kuzubov,Y (2605) Bucharest ROU 2024 0-1 (46)}) 10. Qh5 {[%emt 0:00:02]} g6 {[%emt 0:00:04]} 11. Qh6 {[%emt 0:00:08]} c5 {[%emt 0:00:02]} 12. Nd2 {[%emt 0:00:24]} cxd4 {[%emt 0:00:06]} 13. cxd4 {[%emt 0:00:01]} f6 {[%emt 0:00:05]} 14. Nf3 {[%emt 0:00:04]} a5 {[%emt 0:00:03]} 15. Bf4 {[%emt 0:00:07]} Ba6 {[%emt 0:00:02]} 16. Bxa6 {[%emt 0:00:08]} Nf5 {[%emt 0:00:02]} 17. Qh3 {[%emt 0:00:06]} Rxa6 {[%emt 0:00:01]} 18. Bxd6 {[%emt 0:00:02]} Qxd6 {[%emt 0:00:02]} 19. g4 {[%emt 0:00:13]} Ne7 {[%emt 0:00:07]} 20. Rae1 {[%emt 0:00:05]} g5 {[%emt 0:00:04]} 21. Qg3 {[%emt 0:00:06]} Ng6 {[%emt 0:00:01]} 22. h4 {[%emt 0:00:11]} h6 {[%emt 0:00:02]} 23. Qxd6 {[%emt 0:00:26]} Rxd6 {[%emt 0:00:02]} 24. Rc1 {[%emt 0:00:03]} a4 {[%emt 0:00:07]} 25. hxg5 {[%emt 0:00:05]} hxg5 {[%emt 0:00:01]} 26. Rc7 {[%emt 0:00:05]} Rb6 {[%emt 0:00:04]} 27. Rb1 {[%emt 0:00:05]} Rfb8 {[%emt 0:00:08]} 28. Rc2 {[%emt 0:00:05]} Kf7 {[%emt 0:00:04]} 29. Nd2 {[%emt 0:00:08]} Rb4 {[%emt 0:00:02]} 30. Nf3 {[%emt 0:00:08]} Nf4 {[%emt 0:00:01]} 31. Kf1 {[%emt 0:00:02]} R8b7 {[%emt 0:00:06]} 32. Ke1 {[%emt 0:00:03]} Nd3+ {[%emt 0:00:02]} 33. Kd2 {[%emt 0:00:02]} Nxb2 {[%emt 0:00:04]} 34. Ke2 {[%emt 0:00:07]} Nc4 {[%emt 0:00:04]} 35. Rxb4 {[%emt 0:00:04]} Rxb4 {[%emt 0:00:01]} 36. Ne1 {[%emt 0:00:00]} Nd6 {[%emt 0:00:03]} 37. Ke3 {[%emt 0:00:06]} Nb5 {[%emt 0:00:05]} 38. Nd3 {[%emt 0:00:02]} Rxd4 {[%emt 0:00:03]} 39. Rb2 {[%emt 0:00:04]} Re4+ {[%emt 0:00:01]} 40. Kd2 {[%emt 0:00:01]} Nd4 {[%emt 0:00:02]} 41. Kc3 {[%emt 0:00:01]} Rxg4 {[%emt 0:00:02]} 42. Rb7+ {[%emt 0:00:02]} Kg6 {[%emt 0:00:02]} 43. f3 {[%emt 0:00:00]} Nxf3 {[%emt 0:00:01]} 44. Nf2 {[%emt 0:00:01]} Rc4+ {[%emt 0:00:01]} 45. Kd3 {[%emt 0:00:01]} Ne5+ {[%emt 0:00:01]} 46. Ke2 {[%emt 0:00:01]} g4 {[%emt 0:00:00]} 47. a3 {[%emt 0:00:02]} g3 {[%emt 0:00:01]} 48. Nh1 {[%emt 0:00:01]} g2 {[%emt 0:00:02]} 49. Rb8 {[%emt 0:00:01]} Rc2+ {[%emt 0:00:03]} 50. Kd1 {[%emt 0:00:01]} gxh1=Q+ {[%emt 0:00:02]} 51. Kxc2 {[%emt 0:00:01]} Qe4+ {[%emt 0:00:00]} 52. Kb2 {[%emt 0:00:01]} Nc4+ {[%emt 0:00:02]} 53. Ka1 {[%emt 0:00:01]} Qe5+ {[%emt 0:00:02]} 54. Ka2 {[%emt 0:00:01]} Qxb8 {[%emt 0:00:01]} 55. Ka1 {[%emt 0:00:01]} Qb2# {[%emt 0:00:00]} 0-1

[Event "July 23 Late 2024"]
[Site "Chess.com"]
[Date "2024.07.23"]
[Round "2.1"]
[White "Carlsen, Magnus"]
[Black "Baziuk, Vladyslav"]
[Result "1-0"]
[ECO "B22"]
[WhiteElo "3240"]
[BlackElo "2652"]
[PlyCount "111"]
[EventDate "2024.??.??"]
[WhiteTeam "NOR"]
[BlackTeam "UKR"]
[TimeControl "180+1"]
[WhiteClock "0:00:42"]
[BlackClock "0:00:15"]

1. e4 {[%emt 0:00:02]} c6 {[%emt 0:00:03]} 2. c4 {[%emt 0:00:06]} d5 {[%emt 0:00:00]} 3. cxd5 {[%emt 0:00:01]} cxd5 {[%emt 0:00:00]} 4. e5 {[%emt 0:00:01]} Nc6 {[%emt 0:00:04]} 5. d4 {[%emt 0:00:01]} Bf5 {[%emt 0:00:03]} 6. Bd3 {[%emt 0:00:02]} Bxd3 {[%emt 0:00:02]} 7. Qxd3 {[%emt 0:00:00]} e6 {[%emt 0:00:01]} 8. Nf3 {[%emt 0:00:02]} Nge7 {[%emt 0:00:03]} ({RR} 8... Qb6 9. O-O Rc8 10. a3 Na5 11. Nbd2 Ne7 12. b4 Nc4 13. Ra2 Qa6 14. Rc2 Nxd2 15. Qxd2 h6 16. Bb2 Nc6 17. Rfc1 Be7 18. Qe3 Qa4 19. Nd2 O-O 20. Nb1 a5 21. bxa5 Qxa5 22. Qb3 Qa6 23. Bc3 {Kjoita,T (2062)-Haarr,J (2240) Norway NOR 2025 ½-½ (80)}) 9. O-O {[%emt 0:00:03]} Nf5 {[%emt 0:00:01]} 10. Nc3 {[%emt 0:00:01]} Be7 {[%emt 0:00:02]} 11. g3 $146 {[%emt 0:00:02]} ({RR} 11. a3 O-O 12. Bd2 Nh4 13. Nxh4 Bxh4 14. Na4 Be7 15. Rac1 Qd7 16. Nc5 Bxc5 17. Rxc5 Rfc8 18. Rfc1 Ne7 19. b3 Rxc5 20. Rxc5 Rc8 21. Rxc8+ Qxc8 22. g4 Nc6 23. Kg2 a6 24. a4 Qf8 25. Bc3 Qe7 {Agdestein,S (2583)-Wang,Y (2704) Amsterdam 2008 ½-½ (62)}) 11... O-O {[%emt 0:00:07]} 12. h4 {[%emt 0:00:02]} a6 {[%emt 0:00:05]} 13. Kg2 {[%emt 0:00:06]} Rc8 {[%emt 0:00:04]} 14. h5 {[%emt 0:00:07]} f6 {[%emt 0:00:31]} 15. exf6 {[%emt 0:00:06]} Bxf6 {[%emt 0:00:00]} 16. Ne2 {[%emt 0:00:05]} Qb6 {[%emt 0:00:07]} 17. Rd1 {[%emt 0:00:07]} Nb4 {[%emt 0:00:02]} 18. Qb3 {[%emt 0:00:02]} Qb5 {[%emt 0:00:19]} 19. Nf4 {[%emt 0:00:10]} Rc6 {[%emt 0:00:03]} 20. Rb1 {[%emt 0:00:39]} Nc2 {[%emt 0:00:12]} 21. Qxb5 {[%emt 0:00:03]} axb5 {[%emt 0:00:00]} 22. Ne2 {[%emt 0:00:03]} Rfc8 {[%emt 0:00:08]} 23. Bf4 {[%emt 0:00:03]} h6 {[%emt 0:00:06]} 24. Rd2 {[%emt 0:00:03]} Nb4 {[%emt 0:00:06]} 25. a3 {[%emt 0:00:02]} Na6 {[%emt 0:00:02]} 26. Ne5 {[%emt 0:00:09]} Rc2 {[%emt 0:00:03]} 27. Rbd1 {[%emt 0:00:02]} b4 {[%emt 0:00:02]} 28. g4 {[%emt 0:00:02]} Ne7 {[%emt 0:00:04]} 29. Nd7 {[%emt 0:00:07]} Kf7 {[%emt 0:00:08]} 30. Nxf6 {[%emt 0:00:02]} Kxf6 {[%emt 0:00:01]} 31. Be5+ {[%emt 0:00:02]} Kf7 {[%emt 0:00:01]} 32. Nf4 {[%emt 0:00:01]} bxa3 {[%emt 0:00:04]} 33. bxa3 {[%emt 0:00:01]} Rxd2 {[%emt 0:00:02]} 34. Rxd2 {[%emt 0:00:00]} Nc6 {[%emt 0:00:01]} 35. Ng6 {[%emt 0:00:05]} Nxe5 {[%emt 0:00:03]} 36. Nxe5+ {[%emt 0:00:02]} Ke7 {[%emt 0:00:03]} 37. Rb2 {[%emt 0:00:01]} Rc7 {[%emt 0:00:01]} 38. a4 {[%emt 0:00:06]} Nb8 {[%emt 0:00:01]} 39. a5 {[%emt 0:00:02]} Nd7 {[%emt 0:00:01]} 40. Kf3 {[%emt 0:00:13]} Nxe5+ {[%emt 0:00:16]} 41. dxe5 {[%emt 0:00:00]} Kd7 {[%emt 0:00:00]} 42. Rb6 {[%emt 0:00:02]} Ke7 {[%emt 0:00:16]} 43. Ke3 {[%emt 0:00:02]} Kd7 {[%emt 0:00:01]} 44. f4 {[%emt 0:00:01]} Rc3+ {[%emt 0:00:06]} 45. Kd2 {[%emt 0:00:02]} Rc4 {[%emt 0:00:03]} 46. Rxb7+ {[%emt 0:00:01]} Kc6 {[%emt 0:00:00]} 47. Rxg7 {[%emt 0:00:02]} Rxf4 {[%emt 0:00:01]} 48. a6 {[%emt 0:00:02]} Kc5 {[%emt 0:00:05]} 49. a7 {[%emt 0:00:01]} Ra4 {[%emt 0:00:00]} 50. g5 {[%emt 0:00:00]} hxg5 {[%emt 0:00:04]} 51. h6 {[%emt 0:00:01]} Kd4 {[%emt 0:00:00]} 52. h7 {[%emt 0:00:01]} Ra2+ {[%emt 0:00:00]} 53. Kc1 {[%emt 0:00:02]} Kc3 {[%emt 0:00:02]} 54. Rc7+ {[%emt 0:00:02]} Kd3 {[%emt 0:00:00]} 55. h8=Q {[%emt 0:00:01]} Ra1+ {[%emt 0:00:01]} 56. Kb2 {[%emt 0:00:01]} 1-0

[Event "July 23 Late 2024"]
[Site "Chess.com"]
[Date "2024.07.23"]
[Round "4.1"]
[White "Carlsen, Magnus"]
[Black "Vasquez Schroeder, Rodrigo"]
[Result "1-0"]
[ECO "B50"]
[WhiteElo "3242"]
[BlackElo "2885"]
[PlyCount "85"]
[EventDate "2024.??.??"]
[WhiteTeam "NOR"]
[BlackTeam "CHI"]
[TimeControl "180+1"]
[WhiteClock "0:00:44"]
[BlackClock "0:00:14"]

1. e4 {[%emt 0:00:02]} c5 {[%emt 0:00:03]} 2. Nf3 {[%emt 0:00:01]} d6 {[%emt 0:00:00]} 3. Bc4 {[%emt 0:00:01]} Nc6 {[%emt 0:00:02]} 4. O-O {[%emt 0:00:07]} Nf6 {[%emt 0:00:01]} 5. d3 {[%emt 0:00:00]} Bg4 {[%emt 0:00:02]} 6. h3 {[%emt 0:00:01]} Bh5 {[%emt 0:00:02]} 7. g4 {[%emt 0:00:02]} Bg6 {[%emt 0:00:01]} 8. Nh2 {[%emt 0:00:01]} e5 {[%emt 0:00:15]} 9. Nc3 {[%emt 0:00:04]} Be7 {[%emt 0:00:02]} 10. f4 {[%emt 0:00:01]} exf4 {[%emt 0:00:02]} 11. Bxf4 {[%emt 0:00:01]} Nd7 $146 {[%emt 0:00:02]} ({RR} 11... h5 12. g5 Nd7 13. h4 Nde5 14. Bb3 Qd7 15. Nd5 O-O-O 16. c3 Qh3 17. Bxe5 dxe5 18. Qe1 f6 19. Rf3 Qd7 20. gxf6 gxf6 21. Qf2 Bf7 22. Rf1 Be6 23. Kh1 Rhg8 24. Rg1 Rxg1+ 25. Qxg1 Bg4 26. Nxg4 {Aronian,L (2742)-Korobov,A (2663) chess.com INT 2023 1-0 (41)}) 12. Qd2 {[%emt 0:00:05]} Nde5 {[%emt 0:00:01]} 13. b3 {[%emt 0:00:11]} h6 {[%emt 0:00:03]} 14. Nd5 {[%emt 0:00:02]} Bg5 {[%emt 0:00:01]} 15. Nf3 {[%emt 0:00:02]} Nxf3+ {[%emt 0:00:13]} 16. Rxf3 {[%emt 0:00:01]} O-O {[%emt 0:00:06]} 17. Raf1 {[%emt 0:00:03]} Ne5 {[%emt 0:00:03]} 18. R3f2 {[%emt 0:00:04]} a6 {[%emt 0:00:06]} 19. a4 {[%emt 0:00:04]} Rb8 {[%emt 0:00:01]} 20. a5 {[%emt 0:00:05]} Nc6 {[%emt 0:00:08]} 21. Bxg5 {[%emt 0:00:05]} Qxg5 {[%emt 0:00:07]} 22. Qxg5 {[%emt 0:00:03]} hxg5 {[%emt 0:00:01]} 23. h4 {[%emt 0:00:13]} gxh4 {[%emt 0:00:06]} 24. g5 {[%emt 0:00:01]} Rfe8 {[%emt 0:00:07]} 25. Nf4 {[%emt 0:00:02]} Ne5 {[%emt 0:00:22]} 26. Bd5 {[%emt 0:00:04]} Re7 {[%emt 0:00:15]} 27. Rh2 {[%emt 0:00:10]} Bh7 {[%emt 0:00:08]} 28. Rxh4 {[%emt 0:00:05]} g6 {[%emt 0:00:05]} 29. Kf2 {[%emt 0:00:07]} Kg7 {[%emt 0:00:02]} 30. Rfh1 {[%emt 0:00:01]} Bg8 {[%emt 0:00:00]} 31. Ke3 {[%emt 0:00:06]} Nc6 {[%emt 0:00:01]} 32. Bc4 {[%emt 0:00:24]} Nd4 {[%emt 0:00:03]} 33. R4h2 {[%emt 0:00:08]} Re5 {[%emt 0:00:01]} 34. Rg2 {[%emt 0:00:02]} Nc6 {[%emt 0:00:02]} 35. Ra1 {[%emt 0:00:03]} Rbe8 {[%emt 0:00:01]} 36. Nd5 {[%emt 0:00:02]} Rd8 {[%emt 0:00:08]} 37. Nf6 {[%emt 0:00:04]} Nd4 {[%emt 0:00:08]} 38. c3 {[%emt 0:00:03]} Nc6 {[%emt 0:00:09]} 39. Kf4 {[%emt 0:00:05]} Re7 {[%emt 0:00:02]} 40. Rh2 {[%emt 0:00:05]} Rb8 {[%emt 0:00:18]} 41. Rah1 {[%emt 0:00:03]} Rd8 {[%emt 0:00:02]} 42. Bd5 {[%emt 0:00:03]} Rc8 {[%emt 0:00:07]} 43. Rh7+ {[%emt 0:00:03]} 1-0

[Event "July 23 Late 2024"]
[Site "Chess.com"]
[Date "2024.07.23"]
[Round "6.1"]
[White "Carlsen, Magnus"]
[Black "Erigaisi Arjun"]
[Result "1-0"]
[ECO "C77"]
[WhiteElo "3247"]
[BlackElo "3069"]
[PlyCount "57"]
[EventDate "2024.??.??"]
[WhiteTeam "NOR"]
[BlackTeam "IND"]
[TimeControl "180+1"]
[WhiteClock "0:02:00"]
[BlackClock "0:00:50"]

1. e4 {[%emt 0:00:02]} e5 {[%emt 0:00:04]} 2. Nf3 {[%emt 0:00:01]} Nc6 {[%emt 0:00:00]} 3. Bb5 {[%emt 0:00:01]} a6 {[%emt 0:00:03]} 4. Ba4 {[%emt 0:00:02]} Nf6 {[%emt 0:00:01]} 5. d3 {[%emt 0:00:01]} d6 {[%emt 0:00:04]} 6. c3 {[%emt 0:00:03]} g6 {[%emt 0:00:02]} 7. O-O {[%emt 0:00:00]} Bg7 {[%emt 0:00:01]} 8. Re1 {[%emt 0:00:02]} O-O {[%emt 0:00:01]} 9. Nbd2 {[%emt 0:00:00]} Re8 {[%emt 0:00:03]} 10. h3 {[%emt 0:00:05]} h6 {[%emt 0:00:03]} ({RR} 10... b5 11. Bc2 Bb7 12. d4 Nb8 13. Rb1 Nbd7 14. d5 c6 15. c4 Qc7 16. b3 Bh6 17. Nf1 Bxc1 18. Rxc1 bxc4 19. bxc4 Nc5 20. N3h2 Bc8 21. Qf3 Qe7 22. dxc6 Be6 23. Ne3 Nh5 24. Nd5 Qg5 25. Rb1 {Morozevich,A (2765)-Ivanchuk,V (2751) Nice 2008 1-0 (50)}) 11. Nf1 {[%emt 0:00:06]} b5 {[%emt 0:00:11]} 12. Bc2 {[%emt 0:00:01]} Rb8 $146 {[%emt 0:00:01]} ({RR} 12... Bb7 13. Ng3 Nb8 14. d4 Nbd7 15. a4 c5 16. d5 c4 17. Be3 Qc7 18. Qd2 Kh7 19. Reb1 Nc5 20. Qe2 Nfd7 21. Nd2 Nb6 22. axb5 axb5 23. b3 cxb3 24. Bxb3 Ba6 25. Qd1 Rec8 26. Ra3 Bb7 27. Rba1 {Abrahamyan,T (2324)-Andersen,M (2479) Reykjavik 2016 ½-½ (44)}) ({RR} 12... d5 13. exd5 Nxd5 14. Bd2 Bb7 15. Qc1 Kh7 16. Ng3 b4 17. Ne4 Bf8 18. Bb3 Na5 19. Ba4 Bc6 20. cxb4 Bxa4 21. bxa5 Bb5 22. Nc5 Qd6 23. b4 Bg7 24. a4 Bc6 25. Qc4 Nf6 26. Rac1 Bd5 27. Qh4 {Zheng,H (2248)-Smietanska,W (2157) Krakow POL 2025 1-0 (96)}) ({RR} 12... d5 13. a4 Be6 14. Ng3 b4 15. a5 dxe4 16. Nxe4 Nxe4 17. dxe4 Qxd1 18. Bxd1 bxc3 19. bxc3 Red8 20. Be2 Ne7 21. Be3 Nc8 22. Nd2 Nd6 23. f3 Nb5 24. Rec1 Bf8 25. Kf2 f5 26. Ke1 f4 27. Bf2 {Carlsen,M (2847)-Muzychuk,A (2535) chess24.com INT 2021 1-0 (38)}) 13. d4 {[%emt 0:00:08]} exd4 {[%emt 0:00:14]} 14. cxd4 {[%emt 0:00:02]} Nb4 {[%emt 0:00:01]} 15. Bb1 {[%emt 0:00:01]} c5 {[%emt 0:00:00]} 16. d5 {[%emt 0:00:01]} a5 {[%emt 0:00:04]} 17. a3 {[%emt 0:00:06]} Na6 {[%emt 0:00:01]} 18. a4 {[%emt 0:00:01]} bxa4 {[%emt 0:00:07]} 19. Qxa4 {[%emt 0:00:06]} Rb4 {[%emt 0:00:07]} 20. Qxa5 {[%emt 0:00:14]} Qxa5 {[%emt 0:00:00]} 21. Rxa5 {[%emt 0:00:00]} Nxe4 {[%emt 0:00:00]} 22. Bd2 {[%emt 0:00:01]} f5 {[%emt 0:01:09]} 23. Bxb4 {[%emt 0:00:02]} Nxb4 {[%emt 0:00:00]} 24. N1d2 {[%emt 0:00:02]} Bxb2 {[%emt 0:00:02]} 25. Bxe4 {[%emt 0:00:06]} fxe4 {[%emt 0:00:00]} 26. Rxe4 {[%emt 0:00:01]} Rf8 {[%emt 0:00:04]} 27. Nc4 {[%emt 0:00:10]} Bg7 {[%emt 0:00:12]} 28. Nxd6 {[%emt 0:00:04]} Bf5 {[%emt 0:00:04]} 29. Nxf5 {[%emt 0:00:01]} 1-0

[Event "July 23 Late 2024"]
[Site "Chess.com"]
[Date "2024.07.23"]
[Round "7.1"]
[White "Bortnyk, Olexandr"]
[Black "Carlsen, Magnus"]
[Result "1-0"]
[ECO "B21"]
[WhiteElo "3037"]
[BlackElo "3251"]
[PlyCount "179"]
[EventDate "2024.??.??"]
[WhiteTeam "UKR"]
[BlackTeam "NOR"]
[TimeControl "180+1"]
[WhiteClock "0:00:07"]
[BlackClock "0:00:06"]

1. e4 {[%emt 0:00:02]} c5 {[%emt 0:00:05]} 2. Be2 {[%emt 0:00:02]} Nc6 {[%emt 0:00:03]} 3. f4 {[%emt 0:00:01]} d5 {[%emt 0:00:03]} 4. d3 {[%emt 0:00:02]} Nd4 {[%emt 0:00:14]} 5. Nf3 {[%emt 0:00:10]} Nxe2 {[%emt 0:00:01]} 6. Qxe2 {[%emt 0:00:00]} e6 {[%emt 0:00:01]} 7. Nc3 {[%emt 0:00:06]} Ne7 {[%emt 0:00:03]} 8. O-O {[%emt 0:00:03]} d4 {[%emt 0:00:06]} 9. Nd1 {[%emt 0:00:02]} Nc6 $146 {[%emt 0:00:01]} ({RR} 9... g6 10. Nf2 Bg7 11. g4 h5 12. gxh5 Rxh5 13. Kh1 Bd7 14. Ng4 Qc7 15. Nfe5 Rh7 16. Bd2 f6 17. Nxd7 Qxd7 18. Rae1 O-O-O 19. b4 Rdh8 20. bxc5 f5 21. Ne5 Bxe5 22. fxe5 Rxh2+ 23. Qxh2 Rxh2+ 24. Kxh2 {Kolzenburg,J (1671)-Fieberg,S (2180) Playchess.com INT 2020 0-1 (44)}) 10. Nf2 {[%emt 0:00:07]} Be7 {[%emt 0:00:01]} 11. g4 {[%emt 0:00:09]} f5 {[%emt 0:00:06]} 12. Kh1 {[%emt 0:00:10]} O-O {[%emt 0:00:02]} 13. Rg1 {[%emt 0:00:17]} b6 {[%emt 0:00:02]} 14. Bd2 {[%emt 0:00:05]} Bb7 {[%emt 0:00:01]} 15. exf5 {[%emt 0:00:10]} exf5 {[%emt 0:00:03]} 16. gxf5 {[%emt 0:00:03]} Qd5 {[%emt 0:00:22]} 17. Ne4 {[%emt 0:00:18]} Rxf5 {[%emt 0:00:03]} 18. Rg3 {[%emt 0:00:08]} Raf8 {[%emt 0:00:02]} 19. Rag1 {[%emt 0:00:01]} g6 {[%emt 0:00:16]} 20. Qg2 {[%emt 0:00:02]} Qf7 {[%emt 0:00:18]} 21. h4 {[%emt 0:00:10]} Rh5 {[%emt 0:00:05]} 22. Kh2 {[%emt 0:00:09]} Nd8 {[%emt 0:00:11]} 23. Rg4 {[%emt 0:00:19]} Qf5 {[%emt 0:00:30]} 24. Qh3 {[%emt 0:00:10]} Bc8 {[%emt 0:00:04]} 25. Ne5 {[%emt 0:00:05]} Kh8 {[%emt 0:00:08]} 26. Be1 {[%emt 0:00:12]} Ne6 {[%emt 0:00:08]} 27. Ng3 {[%emt 0:00:03]} Nxf4 {[%emt 0:00:03]} 28. Nxf5 {[%emt 0:00:02]} Nxh3 {[%emt 0:00:02]} 29. Nxe7 {[%emt 0:00:09]} Nxg1 {[%emt 0:00:01]} 30. N5xg6+ {[%emt 0:00:08]} hxg6 {[%emt 0:00:01]} 31. Nxg6+ {[%emt 0:00:00]} Kg7 {[%emt 0:00:02]} 32. Rxg1 {[%emt 0:00:00]} Re8 {[%emt 0:00:21]} 33. Nf4+ {[%emt 0:00:01]} Kh6 {[%emt 0:00:00]} 34. Nxh5 {[%emt 0:00:00]} Kxh5 {[%emt 0:00:01]} 35. Rg5+ {[%emt 0:00:04]} Kh6 {[%emt 0:00:00]} 36. Bd2 {[%emt 0:00:00]} Kh7 {[%emt 0:00:01]} 37. Rg2 {[%emt 0:00:02]} Bb7 {[%emt 0:00:02]} 38. Rf2 {[%emt 0:00:00]} Kg6 {[%emt 0:00:01]} 39. Bg5 {[%emt 0:00:02]} Bd5 {[%emt 0:00:01]} 40. a3 {[%emt 0:00:01]} Re6 {[%emt 0:00:01]} 41. Kg3 {[%emt 0:00:01]} c4 {[%emt 0:00:01]} 42. dxc4 {[%emt 0:00:01]} Bxc4 {[%emt 0:00:00]} 43. Rd2 {[%emt 0:00:02]} Re4 {[%emt 0:00:02]} 44. Kf3 {[%emt 0:00:02]} Bd5 {[%emt 0:00:01]} 45. Kg3 {[%emt 0:00:01]} Kh5 {[%emt 0:00:02]} 46. c3 {[%emt 0:00:01]} Rg4+ {[%emt 0:00:01]} 47. Kh2 {[%emt 0:00:02]} dxc3 {[%emt 0:00:03]} 48. bxc3 {[%emt 0:00:00]} Bc6 {[%emt 0:00:02]} 49. Rd6 {[%emt 0:00:03]} Rc4 {[%emt 0:00:00]} 50. Kg3 {[%emt 0:00:02]} Rxc3+ {[%emt 0:00:01]} 51. Kf4 {[%emt 0:00:00]} Rc4+ {[%emt 0:00:01]} 52. Kf5 {[%emt 0:00:01]} Be4+ {[%emt 0:00:00]} 53. Ke5 {[%emt 0:00:00]} Bc2 {[%emt 0:00:01]} 54. Rh6+ {[%emt 0:00:01]} Kg4 {[%emt 0:00:01]} 55. Rh8 {[%emt 0:00:00]} Ra4 {[%emt 0:00:01]} 56. Be7 {[%emt 0:00:01]} Re4+ {[%emt 0:00:01]} 57. Kd6 {[%emt 0:00:02]} Rd4+ {[%emt 0:00:00]} 58. Kc7 {[%emt 0:00:01]} Rc4+ {[%emt 0:00:01]} 59. Kb7 {[%emt 0:00:01]} Ra4 {[%emt 0:00:01]} 60. Rg8+ {[%emt 0:00:01]} Kh3 {[%emt 0:00:01]} 61. h5 {[%emt 0:00:01]} Be4+ {[%emt 0:00:01]} 62. Kc7 {[%emt 0:00:00]} Ra5 {[%emt 0:00:01]} 63. h6 {[%emt 0:00:02]} Rh5 {[%emt 0:00:00]} 64. Bg5 {[%emt 0:00:00]} Kg4 {[%emt 0:00:01]} 65. Bc1+ {[%emt 0:00:02]} Kf3 {[%emt 0:00:01]} 66. Kb8 {[%emt 0:00:00]} a5 {[%emt 0:00:00]} 67. Ka7 {[%emt 0:00:01]} b5 {[%emt 0:00:01]} 68. Rb8 {[%emt 0:00:03]} b4 {[%emt 0:00:01]} 69. axb4 {[%emt 0:00:00]} axb4 {[%emt 0:00:00]} 70. Rxb4 {[%emt 0:00:01]} Bd3 {[%emt 0:00:02]} 71. Rf4+ {[%emt 0:00:01]} Ke2 {[%emt 0:00:01]} 72. Rf6 {[%emt 0:00:01]} Rc5 {[%emt 0:00:01]} 73. Bf4 {[%emt 0:00:01]} Rb5 {[%emt 0:00:02]} 74. Rd6 {[%emt 0:00:02]} Kf3 {[%emt 0:00:01]} 75. Rxd3+ {[%emt 0:00:01]} Kxf4 {[%emt 0:00:01]} 76. Rh3 {[%emt 0:00:00]} Ra5+ {[%emt 0:00:01]} 77. Kb7 {[%emt 0:00:01]} Rb5+ {[%emt 0:00:00]} 78. Kc7 {[%emt 0:00:00]} Rc5+ {[%emt 0:00:03]} 79. Kd7 {[%emt 0:00:01]} Rd5+ {[%emt 0:00:01]} 80. Ke7 {[%emt 0:00:01]} Re5+ {[%emt 0:00:00]} 81. Kf7 {[%emt 0:00:03]} Rf5+ {[%emt 0:00:01]} 82. Kg7 {[%emt 0:00:00]} Rg5+ {[%emt 0:00:00]} 83. Kf6 {[%emt 0:00:01]} Rf5+ {[%emt 0:00:01]} 84. Ke6 {[%emt 0:00:00]} Re5+ {[%emt 0:00:01]} 85. Kf7 {[%emt 0:00:02]} Rf5+ {[%emt 0:00:00]} 86. Ke7 {[%emt 0:00:00]} Re5+ {[%emt 0:00:01]} 87. Kd6 {[%emt 0:00:00]} Re8 {[%emt 0:00:01]} 88. h7 {[%emt 0:00:00]} Rh8 {[%emt 0:00:01]} 89. Ke6 {[%emt 0:00:00]} Kg5 {[%emt 0:00:02]} 90. Kf7 {[%emt 0:00:01]} 1-0